[Event "*** Titled Tuesday Blitz"]
[Site "Chess.com"]
[Date "2018.12.04"]
[Round "5"]
[White "robbykevlishvili"]
[Black "Mykola-Bortnyk"]
[Result "0-1"]
[WhiteElo "2736"]
[BlackElo "2842"]
[TimeControl "180+2"]
[EndTime "14:06:32 PST"]
[Termination "Mykola-Bortnyk won by resignation"]

1. e4 {[%clk 0:03:01.9]} 1... Nf6 {[%clk 0:02:59.9]} 2. e5 {[%clk 0:02:59.3]}
2... Nd5 {[%clk 0:03:01.1]} 3. d4 {[%clk 0:03:01.2]} 3... d6 {[%clk 0:03:02.1]}
4. Nf3 {[%clk 0:03:02.5]} 4... dxe5 {[%clk 0:03:01.2]} 5. Nxe5 {[%clk
0:03:04.4]} 5... c6 {[%clk 0:03:02.5]} 6. Be2 {[%clk 0:03:04]} 6... Bf5 {[%clk
0:03:03.6]} 7. O-O {[%clk 0:02:55]} 7... Nd7 {[%clk 0:03:04.8]} 8. Nf3 {[%clk
0:02:53.5]} 8... e6 {[%clk 0:03:06]} 9. c4 {[%clk 0:02:53.4]} 9... N5f6 {[%clk
0:03:07.3]} 10. Nc3 {[%clk 0:02:53.2]} 10... Bd6 {[%clk 0:03:08.4]} 11. Nh4
{[%clk 0:02:53.7]} 11... Bg6 {[%clk 0:03:09]} 12. g3 {[%clk 0:02:54.5]} 12...
Qc7 {[%clk 0:02:59.7]} 13. c5 {[%clk 0:02:54.5]} 13... Be7 {[%clk 0:03:00]} 14.
Bf4 {[%clk 0:02:55.7]} 14... Qc8 {[%clk 0:02:58.9]} 15. b4 {[%clk 0:02:54.4]}
15... O-O {[%clk 0:02:39.8]} 16. Nxg6 {[%clk 0:02:53.2]} 16... hxg6 {[%clk
0:02:41.7]} 17. Bf3 {[%clk 0:02:53.7]} 17... Bd8 {[%clk 0:02:33.7]} 18. Bd6
{[%clk 0:02:42.5]} 18... Re8 {[%clk 0:02:32.2]} 19. b5 {[%clk 0:02:43.6]} 19...
Nd5 {[%clk 0:02:28.5]} 20. Nxd5 {[%clk 0:02:42.9]} 20... exd5 {[%clk 0:02:27.1]}
21. bxc6 {[%clk 0:02:42.9]} 21... bxc6 {[%clk 0:02:27.8]} 22. Qa4 {[%clk
0:02:43.8]} 22... Be7 {[%clk 0:02:23]} 23. Rac1 {[%clk 0:02:38]} 23... Bf8
{[%clk 0:01:37.8]} 24. Bg4 {[%clk 0:02:01.4]} 24... f5 {[%clk 0:01:37.7]} 25.
Bf3 {[%clk 0:02:00.7]} 25... Nf6 {[%clk 0:01:38]} 26. Rb1 {[%clk 0:01:54]} 26...
Bxd6 {[%clk 0:01:36.1]} 27. cxd6 {[%clk 0:01:54.4]} 27... Qd7 {[%clk 0:01:33.4]}
28. Rfc1 {[%clk 0:01:50.2]} 28... Rac8 {[%clk 0:01:33.3]} 29. Qa3 {[%clk
0:01:40]} 29... Re6 {[%clk 0:01:31.8]} 30. Re1 {[%clk 0:01:32.1]} 30... Ne4
{[%clk 0:01:25.5]} 31. Bxe4 {[%clk 0:01:32]} 31... fxe4 {[%clk 0:01:26.4]} 32.
Rb2 {[%clk 0:01:26.7]} 32... Rf8 {[%clk 0:01:18.3]} 33. Reb1 {[%clk 0:01:25.8]}
33... Rxd6 {[%clk 0:01:15.8]} 34. Rb7 {[%clk 0:01:25.8]} 34... Qe6 {[%clk
0:01:13.6]} 35. Qxa7 {[%clk 0:01:25.2]} 35... Qf6 {[%clk 0:01:13.9]} 36. R7b2
{[%clk 0:01:03.8]} 36... Re6 {[%clk 0:01:09.5]} 37. Qc5 {[%clk 0:01:00.3]} 37...
e3 {[%clk 0:01:02.5]} 38. fxe3 {[%clk 0:01:00.7]} 38... Rxe3 {[%clk 0:01:04.4]}
39. a4 {[%clk 0:00:24.3]} 39... Kh7 {[%clk 0:01:02.1]} 40. a5 {[%clk 0:00:21.2]}
40... Rf3 {[%clk 0:01:03.5]} 41. Kg2 {[%clk 0:00:10.3]} 41... Rf2+ {[%clk
0:00:56.9]} 42. Rxf2 {[%clk 0:00:10.1]} 42... Qxf2+ {[%clk 0:00:58.8]} 43. Kh1
{[%clk 0:00:11.7]} 43... Qf3+ {[%clk 0:00:59.7]} 44. Kg1 {[%clk 0:00:12.5]}
44... Qe3+ {[%clk 0:01:01.3]} 45. Kg2 {[%clk 0:00:11.7]} 45... Qe4+ {[%clk
0:01:02]} 46. Kh3 {[%clk 0:00:11.6]} 46... Rf5 {[%clk 0:01:01.7]} 0-1

[Event "*** Titled Tuesday Blitz"]
[Site "Chess.com"]
[Date "2018.12.04"]
[Round "5"]
[White "pKiLz5Rn9b"]
[Black "dyziotomi99"]
[Result "0-1"]
[WhiteElo "2742"]
[BlackElo "2638"]
[TimeControl "180+2"]
[EndTime "14:06:33 PST"]
[Termination "dyziotomi99 won by resignation"]

1. b3 {[%clk 0:03:01.9]} 1... Nf6 {[%clk 0:02:58.1]} 2. Bb2 {[%clk 0:03:02.5]}
2... g6 {[%clk 0:02:59.5]} 3. Nf3 {[%clk 0:03:03.3]} 3... Bg7 {[%clk 0:03:00.4]}
4. g3 {[%clk 0:03:04.7]} 4... O-O {[%clk 0:03:01.3]} 5. Bg2 {[%clk 0:03:06.1]}
5... c5 {[%clk 0:02:58.7]} 6. c4 {[%clk 0:03:07.1]} 6... d5 {[%clk 0:02:58.1]}
7. cxd5 {[%clk 0:03:07.8]} 7... Nxd5 {[%clk 0:02:59.4]} 8. Bxg7 {[%clk 0:03:08]}
8... Kxg7 {[%clk 0:03:01]} 9. O-O {[%clk 0:03:09.6]} 9... Nc6 {[%clk 0:03:02]}
10. d4 {[%clk 0:03:10.6]} 10... cxd4 {[%clk 0:03:03]} 11. Nxd4 {[%clk
0:03:11.8]} 11... Nxd4 {[%clk 0:03:03.7]} 12. Qxd4+ {[%clk 0:03:13.4]} 12... Nf6
{[%clk 0:03:04.8]} 13. Qe5 {[%clk 0:03:15]} 13... Qb6 {[%clk 0:02:41.5]} 14. Nc3
{[%clk 0:03:11.5]} 14... Be6 {[%clk 0:02:15]} 15. Na4 {[%clk 0:03:09]} 15... Qb4
{[%clk 0:02:13.1]} 16. Qc5 {[%clk 0:02:58.2]} 16... a5 {[%clk 0:01:32.9]} 17.
Qxb4 {[%clk 0:02:47.8]} 17... axb4 {[%clk 0:01:34]} 18. Bxb7 {[%clk 0:02:49.3]}
18... Ra7 {[%clk 0:01:35.2]} 19. Bf3 {[%clk 0:02:31.9]} 19... Rd8 {[%clk
0:01:18.9]} 20. Rfd1 {[%clk 0:02:28]} 20... Rxd1+ {[%clk 0:01:18.6]} 21. Rxd1
{[%clk 0:02:28.6]} 21... Bd7 {[%clk 0:01:19.5]} 22. Nc5 {[%clk 0:02:22.2]} 22...
Bb5 {[%clk 0:01:18.9]} 23. Rd2 {[%clk 0:02:22.8]} 23... Rc7 {[%clk 0:01:13.4]}
24. Nd3 {[%clk 0:02:23.6]} 24... Rd7 {[%clk 0:01:06]} 25. Rc2 {[%clk 0:01:45.2]}
25... Bxd3 {[%clk 0:01:04]} 26. exd3 {[%clk 0:01:46.5]} 26... Rxd3 {[%clk
0:01:05]} 27. Kg2 {[%clk 0:01:48.1]} 27... e6 {[%clk 0:01:00.3]} 28. Rc4 {[%clk
0:01:46.3]} 28... Rd2 {[%clk 0:01:01.4]} 29. Rxb4 {[%clk 0:01:46.8]} 29... Rxa2
{[%clk 0:01:02.9]} 30. Rb7 {[%clk 0:01:46.2]} 30... Rb2 {[%clk 0:01:03.4]} 31.
h4 {[%clk 0:01:38.1]} 31... e5 {[%clk 0:01:00.9]} 32. Kf1 {[%clk 0:01:09.6]}
32... h5 {[%clk 0:00:39.3]} 33. Be2 {[%clk 0:00:58.1]} 33... Ne4 {[%clk
0:00:22.2]} 34. b4 {[%clk 0:00:50.2]} 34... Rb1+ {[%clk 0:00:20.8]} 35. Kg2
{[%clk 0:00:51.2]} 35... Rb2 {[%clk 0:00:22.7]} 36. Kf3 {[%clk 0:00:50.5]} 36...
Nd6 {[%clk 0:00:20.6]} 37. Rd7 {[%clk 0:00:31.1]} 37... e4+ {[%clk 0:00:21.5]}
38. Kg2 {[%clk 0:00:30.2]} 38... Nf5 {[%clk 0:00:21.5]} 39. Bc4 {[%clk
0:00:23.3]} 39... Ne3+ {[%clk 0:00:22]} 0-1

[Event "*** Titled Tuesday Blitz"]
[Site "Chess.com"]
[Date "2018.12.04"]
[Round "5"]
[White "jncool68"]
[Black "penguingm1"]
[Result "0-1"]
[WhiteElo "2642"]
[BlackElo "2774"]
[TimeControl "180+2"]
[EndTime "14:06:35 PST"]
[Termination "penguingm1 won by resignation"]

1. e4 {[%clk 0:03:01.9]} 1... e5 {[%clk 0:03:00.6]} 2. Nf3 {[%clk 0:03:02.4]}
2... Nc6 {[%clk 0:03:00.1]} 3. Bb5 {[%clk 0:03:03.2]} 3... a6 {[%clk 0:03:00.7]}
4. Ba4 {[%clk 0:03:03.5]} 4... Nf6 {[%clk 0:03:02.2]} 5. O-O {[%clk 0:03:04.7]}
5... Be7 {[%clk 0:03:03.7]} 6. Re1 {[%clk 0:03:04.8]} 6... b5 {[%clk 0:03:05.1]}
7. Bb3 {[%clk 0:03:05.9]} 7... d6 {[%clk 0:03:06.6]} 8. c3 {[%clk 0:03:07.1]}
8... O-O {[%clk 0:03:08]} 9. h3 {[%clk 0:03:08.6]} 9... Bb7 {[%clk 0:03:09.6]}
10. d4 {[%clk 0:03:07.3]} 10... Re8 {[%clk 0:03:11.1]} 11. Ng5 {[%clk
0:03:06.2]} 11... Rf8 {[%clk 0:03:12.5]} 12. Nf3 {[%clk 0:03:07.6]} 12... Re8
{[%clk 0:03:14.1]} 13. Nbd2 {[%clk 0:03:05.5]} 13... Bf8 {[%clk 0:03:15.2]} 14.
Bc2 {[%clk 0:03:01]} 14... g6 {[%clk 0:03:14.5]} 15. a3 {[%clk 0:02:58.6]} 15...
Bg7 {[%clk 0:03:15.4]} 16. Nf1 {[%clk 0:02:59.2]} 16... exd4 {[%clk 0:02:51.7]}
17. cxd4 {[%clk 0:02:59.5]} 17... Na5 {[%clk 0:02:53.1]} 18. Ng3 {[%clk
0:02:59.6]} 18... c5 {[%clk 0:02:53.5]} 19. d5 {[%clk 0:03:00]} 19... Nd7 {[%clk
0:02:53.9]} 20. Rb1 {[%clk 0:02:58.4]} 20... c4 {[%clk 0:02:53.9]} 21. Bg5
{[%clk 0:02:56.8]} 21... Qc7 {[%clk 0:02:51.8]} 22. Qd2 {[%clk 0:02:53.1]} 22...
Nc5 {[%clk 0:02:52.2]} 23. Bh6 {[%clk 0:02:53.2]} 23... Nab3 {[%clk 0:02:53.4]}
24. Bxb3 {[%clk 0:02:53.5]} 24... Nxb3 {[%clk 0:02:54.6]} 25. Qf4 {[%clk
0:02:51]} 25... Bh8 {[%clk 0:02:52.1]} 26. Rbd1 {[%clk 0:02:39.1]} 26... Nc5
{[%clk 0:02:52.8]} 27. Nh5 {[%clk 0:02:30.4]} 27... Nd7 {[%clk 0:02:33.2]} 28.
Ng5 {[%clk 0:02:22.3]} 28... Re7 {[%clk 0:02:33.5]} 29. Ng3 {[%clk 0:02:16.2]}
29... Ne5 {[%clk 0:02:32.5]} 30. Nf3 {[%clk 0:02:14.2]} 30... Nxf3+ {[%clk
0:01:21.5]} 31. Qxf3 {[%clk 0:02:14.8]} 31... Bxb2 {[%clk 0:01:23.1]} 32. e5
{[%clk 0:02:15.3]} 32... Rxe5 {[%clk 0:01:21.2]} 33. Ne4 {[%clk 0:02:11.2]}
33... Rf5 {[%clk 0:01:14.9]} 34. Qe3 {[%clk 0:02:08.7]} 34... Qd8 {[%clk
0:00:39.3]} 35. g4 {[%clk 0:02:06.9]} 35... Rxd5 {[%clk 0:00:33.5]} 36. Nc3
{[%clk 0:01:52.2]} 36... Re5 {[%clk 0:00:29.3]} 37. Qd4 {[%clk 0:01:49.6]} 37...
Qf6 {[%clk 0:00:21.8]} 38. Rxe5 {[%clk 0:01:46.9]} 38... dxe5 {[%clk 0:00:15.4]}
39. Ne4 {[%clk 0:01:32.2]} 39... Bxd4 {[%clk 0:00:10.6]} 40. Nxf6+ {[%clk
0:01:33.3]} 40... Kh8 {[%clk 0:00:12.1]} 41. Kh2 {[%clk 0:01:27.8]} 41... c3
{[%clk 0:00:11.8]} 42. Kg3 {[%clk 0:01:21.3]} 42... c2 {[%clk 0:00:12.8]} 43.
Re1 {[%clk 0:01:18.9]} 43... Rc8 {[%clk 0:00:13.5]} 44. Bc1 {[%clk 0:01:14.2]}
44... Rc3+ {[%clk 0:00:14.2]} 45. Kh2 {[%clk 0:01:09]} 45... Kg7 {[%clk
0:00:13.9]} 46. Ne8+ {[%clk 0:01:06.2]} 46... Kf8 {[%clk 0:00:15.1]} 47. Nd6
{[%clk 0:01:07.1]} 47... Bc6 {[%clk 0:00:15.9]} 48. Kg1 {[%clk 0:01:04.6]} 48...
Rg3+ {[%clk 0:00:15.2]} 49. Kf1 {[%clk 0:01:05.2]} 49... Rxh3 {[%clk 0:00:14]}
0-1

[Event "*** Titled Tuesday Blitz"]
[Site "Chess.com"]
[Date "2018.12.04"]
[Round "5"]
[White "matiss90"]
[Black "cool4chess"]
[Result "1-0"]
[WhiteElo "2419"]
[BlackElo "2242"]
[TimeControl "180+2"]
[EndTime "14:06:35 PST"]
[Termination "matiss90 won by resignation"]

1. e4 {[%clk 0:03:01.9]} 1... e5 {[%clk 0:02:59.6]} 2. Nf3 {[%clk 0:03:02.3]}
2... Nc6 {[%clk 0:03:01.2]} 3. Bb5 {[%clk 0:03:00.6]} 3... a6 {[%clk 0:03:02.2]}
4. Ba4 {[%clk 0:03:01.5]} 4... Nf6 {[%clk 0:03:02.9]} 5. d3 {[%clk 0:02:59.5]}
5... b5 {[%clk 0:03:03]} 6. Bb3 {[%clk 0:03:00.4]} 6... Be7 {[%clk 0:03:04.6]}
7. O-O {[%clk 0:03:01.2]} 7... Kf8 {[%clk 0:03:04.6]} 8. d4 {[%clk 0:02:57.4]}
8... exd4 {[%clk 0:02:54.5]} 9. e5 {[%clk 0:02:58.4]} 9... Ng4 {[%clk
0:02:54.1]} 10. c3 {[%clk 0:02:53.2]} 10... Ngxe5 {[%clk 0:02:32.5]} 11. Nxe5
{[%clk 0:02:46.9]} 11... Nxe5 {[%clk 0:02:34.4]} 12. cxd4 {[%clk 0:02:48]} 12...
Nc6 {[%clk 0:02:16.9]} 13. Qf3 {[%clk 0:02:33.8]} 13... Qe8 {[%clk 0:01:56.9]}
14. Be3 {[%clk 0:02:33.3]} 14... Bb7 {[%clk 0:01:56.1]} 15. Nc3 {[%clk
0:02:32.7]} 15... Na5 {[%clk 0:01:39]} 16. Bd5 {[%clk 0:02:32.9]} 16... c6
{[%clk 0:01:29.1]} 17. Be4 {[%clk 0:02:33.4]} 17... Nc4 {[%clk 0:01:25.4]} 18.
b3 {[%clk 0:02:30.1]} 18... Nxe3 {[%clk 0:01:25.5]} 19. fxe3 {[%clk 0:02:32]}
19... d5 {[%clk 0:01:17.5]} 20. Bd3 {[%clk 0:02:32.1]} 20... Bg5 {[%clk
0:01:09.2]} 21. Rae1 {[%clk 0:02:32]} 21... Bf6 {[%clk 0:00:57.2]} 22. Kh1
{[%clk 0:02:30.7]} 22... Qd7 {[%clk 0:00:55.4]} 23. e4 {[%clk 0:02:23.8]} 23...
Bxd4 {[%clk 0:00:51.8]} 24. Ne2 {[%clk 0:02:10.5]} 24... Bf6 {[%clk 0:00:29.9]}
25. exd5 {[%clk 0:02:08]} 25... cxd5 {[%clk 0:00:30.8]} 26. Nf4 {[%clk
0:02:03.8]} 26... d4 {[%clk 0:00:31.6]} 27. Qg3 {[%clk 0:01:52]} 27... Re8
{[%clk 0:00:31.5]} 28. Rxe8+ {[%clk 0:01:52.4]} 28... Qxe8 {[%clk 0:00:32.3]}
29. Nh5 {[%clk 0:01:53.5]} 29... Qe5 {[%clk 0:00:31.5]} 30. Qh3 {[%clk
0:01:37.4]} 30... Be7 {[%clk 0:00:17.4]} 31. Ng3 {[%clk 0:01:31.7]} 31... g6
{[%clk 0:00:18.2]} 32. Qg4 {[%clk 0:00:42.8]} 32... h5 {[%clk 0:00:16.8]} 33.
Qxg6 {[%clk 0:00:35.1]} 33... Qg7 {[%clk 0:00:14.7]} 34. Qb6 {[%clk 0:00:23]}
34... Bc8 {[%clk 0:00:13.2]} 35. Qb8 {[%clk 0:00:22.5]} 35... Qg4 {[%clk
0:00:10.4]} 36. Nf5 {[%clk 0:00:20.3]} 36... Kg8 {[%clk 0:00:04.7]} 37. Qxc8+
{[%clk 0:00:20.1]} 37... Kh7 {[%clk 0:00:05.8]} 38. Nxe7+ {[%clk 0:00:21]} 1-0

[Event "*** Titled Tuesday Blitz"]
[Site "Chess.com"]
[Date "2018.12.04"]
[Round "5"]
[White "VeraNebolsina"]
[Black "BlackBoarder"]
[Result "1-0"]
[WhiteElo "2374"]
[BlackElo "2489"]
[TimeControl "180+2"]
[EndTime "14:06:37 PST"]
[Termination "VeraNebolsina won on time"]

1. e4 {[%clk 0:03:01.9]} 1... e6 {[%clk 0:03:00.6]} 2. d4 {[%clk 0:03:02.2]}
2... d5 {[%clk 0:03:02.1]} 3. exd5 {[%clk 0:03:03.3]} 3... exd5 {[%clk
0:03:03.7]} 4. Nf3 {[%clk 0:03:04.5]} 4... Nf6 {[%clk 0:03:04.6]} 5. Bd3 {[%clk
0:03:05.1]} 5... c5 {[%clk 0:03:03.5]} 6. O-O {[%clk 0:03:04.1]} 6... c4 {[%clk
0:03:04.1]} 7. Be2 {[%clk 0:02:57.8]} 7... Be7 {[%clk 0:03:03.9]} 8. b3 {[%clk
0:02:58.9]} 8... cxb3 {[%clk 0:03:05.7]} 9. axb3 {[%clk 0:02:59.8]} 9... O-O
{[%clk 0:03:07.6]} 10. c3 {[%clk 0:02:55.2]} 10... Nc6 {[%clk 0:03:08.9]} 11.
Re1 {[%clk 0:02:55.6]} 11... Bg4 {[%clk 0:03:08.9]} 12. Ne5 {[%clk 0:02:40.6]}
12... Bxe2 {[%clk 0:03:09.2]} 13. Qxe2 {[%clk 0:02:41.8]} 13... Re8 {[%clk
0:02:56.6]} 14. Qb5 {[%clk 0:02:41.5]} 14... Bd6 {[%clk 0:02:40]} 15. Qxb7
{[%clk 0:02:28.1]} 15... Nxe5 {[%clk 0:02:39.3]} 16. dxe5 {[%clk 0:02:27]} 16...
Bxe5 {[%clk 0:02:40]} 17. Be3 {[%clk 0:02:22]} 17... Rb8 {[%clk 0:02:34]} 18.
Qxa7 {[%clk 0:02:16]} 18... Rxb3 {[%clk 0:02:35.4]} 19. Qa4 {[%clk 0:02:08.6]}
19... Rb8 {[%clk 0:02:29.1]} 20. Ra2 {[%clk 0:01:54.9]} 20... h6 {[%clk
0:02:22.4]} 21. Rae2 {[%clk 0:01:54.6]} 21... Qc7 {[%clk 0:01:52.8]} 22. h3
{[%clk 0:01:53.1]} 22... Ra8 {[%clk 0:01:36]} 23. Qh4 {[%clk 0:01:52.3]} 23...
Ne4 {[%clk 0:01:33.6]} 24. Rd1 {[%clk 0:01:28.9]} 24... Ra1 {[%clk 0:01:29.4]}
25. Rc2 {[%clk 0:01:23.1]} 25... Rb8 {[%clk 0:00:58.9]} 26. Rcc1 {[%clk
0:01:24]} 26... Qc4 {[%clk 0:00:52.4]} 27. f3 {[%clk 0:01:13.4]} 27... Bf6
{[%clk 0:00:33.7]} 28. Qf4 {[%clk 0:01:09.6]} 28... Re8 {[%clk 0:00:06.1]} 29.
fxe4 {[%clk 0:01:09.8]} 29... Rxe4 {[%clk 0:00:08]} 30. Qb8+ {[%clk 0:01:10.3]}
30... Kh7 {[%clk 0:00:08.3]} 31. Nd2 {[%clk 0:01:08.1]} 31... Rxc1 {[%clk
0:00:07.8]} 32. Rxc1 {[%clk 0:01:04.9]} 32... Qe2 {[%clk 0:00:08.4]} 33. Nxe4
{[%clk 0:00:50.8]} 33... Qxe3+ {[%clk 0:00:09.1]} 34. Kh2 {[%clk 0:00:51.5]}
34... Qxe4 {[%clk 0:00:04.2]} 35. Qb1 {[%clk 0:00:51.4]} 35... Qxb1 {[%clk
0:00:02.8]} 36. Rxb1 {[%clk 0:00:51]} 36... Bxc3 {[%clk 0:00:04.3]} 37. Rb7
{[%clk 0:00:48.5]} 37... Kg6 {[%clk 0:00:05.1]} 38. Rd7 {[%clk 0:00:48.7]} 38...
d4 {[%clk 0:00:05.5]} 39. Kg3 {[%clk 0:00:50]} 1-0

[Event "*** Titled Tuesday Blitz"]
[Site "Chess.com"]
[Date "2018.12.04"]
[Round "5"]
[White "saraswathii"]
[Black "evgenyermolaev"]
[Result "0-1"]
[WhiteElo "2262"]
[BlackElo "2412"]
[TimeControl "180+2"]
[EndTime "14:06:38 PST"]
[Termination "evgenyermolaev won by resignation"]

1. d4 {[%clk 0:03:01.9]} 1... Nf6 {[%clk 0:02:59.9]} 2. Bf4 {[%clk 0:03:02.8]}
2... c5 {[%clk 0:03:00.6]} 3. c3 {[%clk 0:03:02.9]} 3... e6 {[%clk 0:03:01.5]}
4. e3 {[%clk 0:03:03.9]} 4... Be7 {[%clk 0:03:01.5]} 5. Nf3 {[%clk 0:03:04.9]}
5... b6 {[%clk 0:03:03.1]} 6. Bd3 {[%clk 0:03:05.8]} 6... O-O {[%clk 0:03:03.5]}
7. O-O {[%clk 0:03:06.4]} 7... Ba6 {[%clk 0:03:04.9]} 8. Bxa6 {[%clk 0:03:05.4]}
8... Nxa6 {[%clk 0:03:06.8]} 9. Qe2 {[%clk 0:03:05.2]} 9... Nc7 {[%clk
0:03:08.1]} 10. Nbd2 {[%clk 0:03:04.9]} 10... d6 {[%clk 0:03:08.6]} 11. e4
{[%clk 0:03:05.4]} 11... d5 {[%clk 0:03:07.3]} 12. Rad1 {[%clk 0:03:00.1]} 12...
cxd4 {[%clk 0:03:04]} 13. Nxd4 {[%clk 0:02:58.1]} 13... Qd7 {[%clk 0:02:38.7]}
14. N2f3 {[%clk 0:02:36.3]} 14... dxe4 {[%clk 0:01:44.4]} 15. Ne5 {[%clk
0:02:33.5]} 15... Qe8 {[%clk 0:01:45.4]} 16. Bg5 {[%clk 0:02:02.4]} 16... Ncd5
{[%clk 0:01:32.5]} 17. c4 {[%clk 0:02:01.3]} 17... Bd6 {[%clk 0:01:33.7]} 18.
cxd5 {[%clk 0:01:49]} 18... Bxe5 {[%clk 0:01:33]} 19. dxe6 {[%clk 0:01:49.2]}
19... Bxd4 {[%clk 0:01:26]} 20. exf7+ {[%clk 0:01:48.2]} 20... Qxf7 {[%clk
0:01:26.1]} 21. Rxd4 {[%clk 0:01:49.7]} 21... Qxa2 {[%clk 0:01:26.9]} 22. Bxf6
{[%clk 0:01:50.2]} 22... Rxf6 {[%clk 0:01:27.4]} 23. Rxe4 {[%clk 0:01:50.4]}
23... Raf8 {[%clk 0:01:28.4]} 24. h3 {[%clk 0:01:46.9]} 24... h6 {[%clk
0:01:25.5]} 25. Re7 {[%clk 0:01:42.5]} 25... R6f7 {[%clk 0:01:26.3]} 26. Rxf7
{[%clk 0:01:39.4]} 26... Qxf7 {[%clk 0:01:26.6]} 27. Re1 {[%clk 0:01:38.9]}
27... Kh8 {[%clk 0:01:23.8]} 28. f3 {[%clk 0:01:35]} 28... Qf6 {[%clk
0:01:22.3]} 29. Qe5 {[%clk 0:01:33]} 29... a5 {[%clk 0:01:12.9]} 30. Qxf6 {[%clk
0:01:31.5]} 30... Rxf6 {[%clk 0:01:14.8]} 31. Re5 {[%clk 0:01:32.1]} 31... Rc6
{[%clk 0:01:16.3]} 32. Kh2 {[%clk 0:01:29.9]} 32... Kg8 {[%clk 0:01:16.5]} 33.
Re7 {[%clk 0:01:29]} 33... Rc2 {[%clk 0:01:14.8]} 34. b3 {[%clk 0:01:26.1]}
34... Rc3 {[%clk 0:01:14.7]} 35. b4 {[%clk 0:01:24.4]} 35... axb4 {[%clk
0:00:58.7]} 36. Re4 {[%clk 0:01:25.6]} 36... b3 {[%clk 0:00:59]} 37. Rb4 {[%clk
0:01:26.2]} 37... Kf7 {[%clk 0:00:56.4]} 38. Rxb6 {[%clk 0:01:27]} 38... Ke7
{[%clk 0:00:57.7]} 39. Kg3 {[%clk 0:01:27]} 39... Kd7 {[%clk 0:00:58.2]} 40.
Rb7+ {[%clk 0:01:27.5]} 40... Kc6 {[%clk 0:00:56.7]} 41. Rb8 {[%clk 0:01:28.7]}
41... Kc5 {[%clk 0:00:56]} 42. Kf4 {[%clk 0:01:18.2]} 42... Rc4+ {[%clk
0:00:55.3]} 43. Ke3 {[%clk 0:01:16.8]} 43... Rb4 {[%clk 0:00:56.8]} 44. Rc8+
{[%clk 0:01:17.5]} 44... Kd5 {[%clk 0:00:54.9]} 45. Rc1 {[%clk 0:01:16.5]} 45...
b2 {[%clk 0:00:56.5]} 46. Rb1 {[%clk 0:01:17.7]} 46... Ke5 {[%clk 0:00:56.9]}
47. g3 {[%clk 0:01:07.3]} 47... Rb3+ {[%clk 0:00:56.9]} 48. Ke2 {[%clk 0:01:08]}
48... Kd4 {[%clk 0:00:58.3]} 49. g4 {[%clk 0:01:07.6]} 49... Ke5 {[%clk
0:00:57.5]} 50. Kd2 {[%clk 0:01:02.1]} 50... Kf4 {[%clk 0:00:58.1]} 51. Kc2
{[%clk 0:01:03.4]} 51... Rb8 {[%clk 0:00:56.8]} 52. h4 {[%clk 0:01:02.2]} 52...
Kxf3 {[%clk 0:00:57.5]} 53. g5 {[%clk 0:01:03.3]} 53... h5 {[%clk 0:00:54.2]}
0-1

[Event "*** Titled Tuesday Blitz"]
[Site "Chess.com"]
[Date "2018.12.04"]
[Round "5"]
[White "BIG_Pirate"]
[Black "enriquetejedor"]
[Result "0-1"]
[WhiteElo "2362"]
[BlackElo "2516"]
[TimeControl "180+2"]
[EndTime "14:06:41 PST"]
[Termination "enriquetejedor won on time"]

1. Nf3 {[%clk 0:03:01.9]} 1... b6 {[%clk 0:02:56.8]} 2. g3 {[%clk 0:03:01.2]}
2... Bb7 {[%clk 0:02:58.7]} 3. Bg2 {[%clk 0:03:02.1]} 3... Nf6 {[%clk
0:02:58.9]} 4. c4 {[%clk 0:03:03]} 4... e6 {[%clk 0:03:00.4]} 5. O-O {[%clk
0:03:03.8]} 5... Be7 {[%clk 0:03:02.1]} 6. d4 {[%clk 0:03:04.6]} 6... O-O {[%clk
0:03:03]} 7. d5 {[%clk 0:03:05.4]} 7... exd5 {[%clk 0:03:03.8]} 8. Nh4 {[%clk
0:03:06.5]} 8... c6 {[%clk 0:03:03.4]} 9. cxd5 {[%clk 0:03:07.5]} 9... cxd5
{[%clk 0:03:01.9]} 10. Nf5 {[%clk 0:03:01.3]} 10... Na6 {[%clk 0:03:00.9]} 11.
Nc3 {[%clk 0:02:59.5]} 11... Nc7 {[%clk 0:02:50.7]} 12. Bf4 {[%clk 0:02:58.2]}
12... Ne6 {[%clk 0:02:46.7]} 13. Be5 {[%clk 0:02:02.2]} 13... Rc8 {[%clk
0:02:27.4]} 14. Rc1 {[%clk 0:01:28.4]} 14... Rc5 {[%clk 0:02:23.6]} 15. b4
{[%clk 0:01:15]} 15... Rc4 {[%clk 0:02:06.7]} 16. a3 {[%clk 0:01:15.7]} 16...
Ne4 {[%clk 0:00:51.1]} 17. Nxd5 {[%clk 0:01:00.6]} 17... Bxd5 {[%clk 0:00:46.7]}
18. Qxd5 {[%clk 0:00:42.8]} 18... Rxc1 {[%clk 0:00:48]} 19. Rxc1 {[%clk
0:00:43.2]} 19... Nf6 {[%clk 0:00:48]} 20. Qb7 {[%clk 0:00:26.4]} 20... Ng4
{[%clk 0:00:37.5]} 21. Nxe7+ {[%clk 0:00:17.1]} 21... Qxe7 {[%clk 0:00:39.4]}
22. Bb2 {[%clk 0:00:17.4]} 22... a5 {[%clk 0:00:11.6]} 23. h3 {[%clk 0:00:18.4]}
23... Nxf2 {[%clk 0:00:10.6]} 24. Kxf2 {[%clk 0:00:18.5]} 24... axb4 {[%clk
0:00:12]} 25. Qa7 {[%clk 0:00:14]} 25... bxa3 {[%clk 0:00:04]} 26. Bxa3 {[%clk
0:00:14.8]} 26... Qf6+ {[%clk 0:00:05.1]} 27. Kg1 {[%clk 0:00:14.7]} 27... Qd4+
{[%clk 0:00:06]} 28. Kh2 {[%clk 0:00:14]} 28... Re8 {[%clk 0:00:07.1]} 29. Qxd7
{[%clk 0:00:13.6]} 29... Qxd7 {[%clk 0:00:07.2]} 30. Bc6 {[%clk 0:00:12.4]}
30... Qd8 {[%clk 0:00:07.2]} 31. Bxe8 {[%clk 0:00:12.7]} 31... Qxe8 {[%clk
0:00:09.1]} 32. Bb2 {[%clk 0:00:07.1]} 32... h5 {[%clk 0:00:07.9]} 33. Rc2
{[%clk 0:00:04.1]} 33... Qa4 {[%clk 0:00:07.6]} 34. Rd2 {[%clk 0:00:03.7]} 34...
Nc5 {[%clk 0:00:05.9]} 0-1